[Event "Late-Titled-Tuesday-Blitz-April-16-2024"]
[Site "Chess.com"]
[Date "2024.04.16"]
[Round "6"]
[White "ellatambien"]
[Black "steepedgames"]
[Result "1-0"]
[WhiteElo "2726"]
[BlackElo "2500"]
[TimeControl "180+1"]
[EndTime "15:02:14 PDT"]
[Termination "ellatambien won by resignation"]

1. e4 {[%clk 0:02:59.1]} 1... e6 {[%clk 0:03:00.2]} 2. d4 {[%clk 0:02:58.7]}
2... d5 {[%clk 0:03:00.9]} 3. Nd2 {[%clk 0:02:59.1]} 3... Nf6 {[%clk 0:03:01.3]}
4. e5 {[%clk 0:02:55]} 4... Nfd7 {[%clk 0:03:01.5]} 5. f4 {[%clk 0:02:55.4]}
5... c5 {[%clk 0:03:02]} 6. Ngf3 {[%clk 0:02:53.7]} 6... b6 {[%clk 0:02:55]} 7.
c4 {[%clk 0:02:50.8]} 7... Nc6 {[%clk 0:02:48.4]} 8. cxd5 {[%clk 0:02:45.1]}
8... exd5 {[%clk 0:02:46.7]} 9. Bb5 {[%clk 0:02:45]} 9... Qc7 {[%clk 0:02:36.1]}
10. Qe2 {[%clk 0:02:42.2]} 10... Be7 {[%clk 0:02:28.4]} 11. e6 {[%clk
0:02:41.6]} 11... fxe6 {[%clk 0:02:28.7]} 12. Qxe6 {[%clk 0:02:41]} 12... Bb7
{[%clk 0:02:12.8]} 13. O-O {[%clk 0:02:38]} 13... a6 {[%clk 0:02:09.2]} 14. Bd3
{[%clk 0:02:34.6]} 14... Qd6 {[%clk 0:02:01.4]} 15. Qxd6 {[%clk 0:02:33.4]}
15... Bxd6 {[%clk 0:02:01.6]} 16. Re1+ {[%clk 0:02:33.8]} 16... Kd8 {[%clk
0:01:47]} 17. Ng5 {[%clk 0:02:15.8]} 17... Kc7 {[%clk 0:01:34.7]} 18. Ne6+
{[%clk 0:02:12.9]} 18... Kb8 {[%clk 0:01:28.6]} 19. Nf3 {[%clk 0:02:12.4]} 19...
g6 {[%clk 0:01:25.4]} 20. f5 {[%clk 0:02:07.2]} 20... gxf5 {[%clk 0:01:17.4]}
21. Bxf5 {[%clk 0:02:07]} 21... Nf6 {[%clk 0:01:12.3]} 22. Bg5 {[%clk
0:02:03.6]} 22... Ne4 {[%clk 0:01:11.8]} 23. Bf4 {[%clk 0:01:57.7]} 23... Bxf4
{[%clk 0:01:10.2]} 24. Nxf4 {[%clk 0:01:58.2]} 24... Nxd4 {[%clk 0:01:10.2]} 25.
Nxd4 {[%clk 0:01:56.1]} 25... cxd4 {[%clk 0:01:11.1]} 26. Rad1 {[%clk
0:01:55.3]} 26... Rf8 {[%clk 0:01:09.3]} 27. g4 {[%clk 0:01:54.9]} 27... Nd6
{[%clk 0:01:01.6]} 28. Ne6 {[%clk 0:01:53.8]} 28... Rf7 {[%clk 0:00:51.9]} 29.
Nxd4 {[%clk 0:01:44.2]} 29... Nxf5 {[%clk 0:00:49.6]} 30. Nxf5 {[%clk
0:01:43.9]} 30... h5 {[%clk 0:00:46.4]} 31. Re8+ {[%clk 0:01:41.2]} 31... Ka7
{[%clk 0:00:46.2]} 32. Rxa8+ {[%clk 0:01:40.1]} 32... Kxa8 {[%clk 0:00:39.9]}
33. h3 {[%clk 0:01:39.7]} 33... hxg4 {[%clk 0:00:40.1]} 34. hxg4 {[%clk
0:01:40.6]} 34... Bc8 {[%clk 0:00:39.9]} 35. Rxd5 {[%clk 0:01:39.4]} 35... Bxf5
{[%clk 0:00:34.6]} 36. Rxf5 {[%clk 0:01:34.6]} 36... Rc7 {[%clk 0:00:29.7]} 37.
Kg2 {[%clk 0:01:33.7]} 37... Rc2+ {[%clk 0:00:16.4]} 38. Rf2 {[%clk 0:01:33]}
38... Rc4 {[%clk 0:00:15.9]} 39. Kg3 {[%clk 0:01:31.7]} 39... b5 {[%clk
0:00:16.3]} 40. g5 {[%clk 0:01:31.8]} 40... b4 {[%clk 0:00:14.7]} 41. Rf4 {[%clk
0:01:29.4]} 41... Rc5 {[%clk 0:00:11.9]} 42. g6 {[%clk 0:01:29.4]} 42... Rc6
{[%clk 0:00:09.4]} 43. g7 {[%clk 0:01:28.6]} 1-0

[Event "Late-Titled-Tuesday-Blitz-April-16-2024"]
[Site "Chess.com"]
[Date "2024.04.16"]
[Round "6"]
[White "TigrVShlyape"]
[Black "Brown_Mamba24"]
[Result "1-0"]
[WhiteElo "2931"]
[BlackElo "2646"]
[TimeControl "180+1"]
[EndTime "15:02:16 PDT"]
[Termination "TigrVShlyape won by checkmate"]

1. e4 {[%clk 0:03:00.9]} 1... c5 {[%clk 0:02:59.7]} 2. Nf3 {[%clk 0:02:59]} 2...
g6 {[%clk 0:02:59.5]} 3. c4 {[%clk 0:02:58.5]} 3... Nc6 {[%clk 0:02:59.1]} 4. d4
{[%clk 0:02:58.6]} 4... cxd4 {[%clk 0:03:00]} 5. Nxd4 {[%clk 0:02:58.9]} 5...
Nf6 {[%clk 0:03:00.7]} 6. Nc3 {[%clk 0:02:58.7]} 6... d6 {[%clk 0:03:00.7]} 7.
Be2 {[%clk 0:02:58.2]} 7... Nxd4 {[%clk 0:03:01.2]} 8. Qxd4 {[%clk 0:02:58.1]}
8... Bg7 {[%clk 0:03:02.1]} 9. Qe3 {[%clk 0:02:56.5]} 9... O-O {[%clk
0:03:02.2]} 10. O-O {[%clk 0:02:56.2]} 10... a5 {[%clk 0:03:02.5]} 11. Bd2
{[%clk 0:02:52]} 11... a4 {[%clk 0:03:02.8]} 12. Rab1 {[%clk 0:02:42.3]} 12...
Be6 {[%clk 0:02:59.5]} 13. b3 {[%clk 0:02:31.6]} 13... axb3 {[%clk 0:02:59.7]}
14. axb3 {[%clk 0:02:31.5]} 14... Nd7 {[%clk 0:02:55.6]} 15. f4 {[%clk
0:02:27.9]} 15... Qb6 {[%clk 0:02:52.1]} 16. Qxb6 {[%clk 0:02:02.3]} 16... Nxb6
{[%clk 0:02:53]} 17. Bf3 {[%clk 0:01:55]} 17... Bd4+ {[%clk 0:02:51.8]} 18. Kh1
{[%clk 0:01:53.7]} 18... Rfc8 {[%clk 0:02:36.6]} 19. e5 {[%clk 0:01:49.5]} 19...
Rab8 {[%clk 0:02:22.4]} 20. exd6 {[%clk 0:01:48]} 20... exd6 {[%clk 0:02:23.3]}
21. Nb5 {[%clk 0:01:47.4]} 21... Bc5 {[%clk 0:02:16.5]} 22. Rbd1 {[%clk
0:01:40.1]} 22... d5 {[%clk 0:02:13.5]} 23. b4 {[%clk 0:01:39.1]} 23... Bf8
{[%clk 0:02:06.1]} 24. c5 {[%clk 0:01:39.4]} 24... Nc4 {[%clk 0:02:06.5]} 25.
Nd4 {[%clk 0:01:26]} 25... b6 {[%clk 0:01:58.5]} 26. c6 {[%clk 0:01:14.5]} 26...
Nxd2 {[%clk 0:01:53.5]} 27. Rxd2 {[%clk 0:01:14.8]} 27... Bxb4 {[%clk 0:01:54]}
28. Re2 {[%clk 0:01:15.1]} 28... Re8 {[%clk 0:01:41.4]} 29. g4 {[%clk
0:01:07.9]} 29... Bc5 {[%clk 0:01:31.7]} 30. Nxe6 {[%clk 0:01:05.6]} 30... Rxe6
{[%clk 0:01:25.2]} 31. Rxe6 {[%clk 0:01:04.9]} 31... fxe6 {[%clk 0:01:26.1]} 32.
f5 {[%clk 0:01:05.2]} 32... gxf5 {[%clk 0:01:25.7]} 33. gxf5 {[%clk 0:01:05.5]}
33... Kf7 {[%clk 0:01:21.4]} 34. fxe6+ {[%clk 0:01:05.4]} 34... Kxe6 {[%clk
0:01:21.5]} 35. c7 {[%clk 0:01:05.7]} 35... Rc8 {[%clk 0:01:09.3]} 36. Bg4+
{[%clk 0:01:05.8]} 36... Kd6 {[%clk 0:01:09.4]} 37. Bxc8 {[%clk 0:01:05.8]}
37... Kxc7 {[%clk 0:01:09.9]} 38. Ba6 {[%clk 0:01:05.4]} 38... h6 {[%clk
0:01:04.1]} 39. Rf6 {[%clk 0:01:05]} 39... Be3 {[%clk 0:01:04.3]} 40. Bb5 {[%clk
0:01:04]} 40... d4 {[%clk 0:01:04.5]} 41. Kg2 {[%clk 0:01:02.5]} 41... Bg5
{[%clk 0:01:01.5]} 42. Re6 {[%clk 0:01:02.3]} 42... Be3 {[%clk 0:01:01.9]} 43.
Kf3 {[%clk 0:01:02.3]} 43... Bg5 {[%clk 0:00:57.8]} 44. Ke4 {[%clk 0:01:02.6]}
44... Be3 {[%clk 0:00:56.8]} 45. h4 {[%clk 0:01:02.7]} 45... Bf2 {[%clk
0:00:55.8]} 46. h5 {[%clk 0:01:02.6]} 46... Be3 {[%clk 0:00:56]} 47. Kd5 {[%clk
0:01:02.7]} 47... Kb7 {[%clk 0:00:55]} 48. Re7+ {[%clk 0:01:02.5]} 48... Kc8
{[%clk 0:00:54.7]} 49. Kd6 {[%clk 0:00:58.8]} 49... Kb8 {[%clk 0:00:53.1]} 50.
Kc6 {[%clk 0:00:55.4]} 50... Kc8 {[%clk 0:00:50]} 51. Re8# {[%clk 0:00:55.2]}
1-0

[Event "Late-Titled-Tuesday-Blitz-April-16-2024"]
[Site "Chess.com"]
[Date "2024.04.16"]
[Round "6"]
[White "PNEPaul"]
[Black "FMOlexandrProhorov"]
[Result "1/2-1/2"]
[WhiteElo "1868"]
[BlackElo "2281"]
[TimeControl "180+1"]
[EndTime "15:02:17 PDT"]
[Termination "Game drawn by repetition"]

1. e4 {[%clk 0:02:46.1]} 1... c5 {[%clk 0:03:00.9]} 2. Nf3 {[%clk 0:02:45.6]}
2... e6 {[%clk 0:02:59.9]} 3. d4 {[%clk 0:02:45.2]} 3... cxd4 {[%clk 0:03:00.4]}
4. c3 {[%clk 0:02:45.4]} 4... Qb6 {[%clk 0:03:01.3]} 5. cxd4 {[%clk 0:02:44.2]}
5... Nf6 {[%clk 0:02:59.5]} 6. Nc3 {[%clk 0:02:44.1]} 6... Bb4 {[%clk
0:02:54.3]} 7. Bd3 {[%clk 0:02:37.4]} 7... d5 {[%clk 0:02:46.5]} 8. e5 {[%clk
0:02:36.8]} 8... Ne4 {[%clk 0:02:46.6]} 9. O-O {[%clk 0:02:31.5]} 9... Bxc3
{[%clk 0:02:40.9]} 10. bxc3 {[%clk 0:02:27.9]} 10... Nxc3 {[%clk 0:02:35.7]} 11.
Qc2 {[%clk 0:02:26.5]} 11... Ne4 {[%clk 0:02:35.3]} 12. Bxe4 {[%clk 0:02:25.3]}
12... dxe4 {[%clk 0:02:35.6]} 13. Qxe4 {[%clk 0:02:23.4]} 13... Bd7 {[%clk
0:02:34]} 14. Ba3 {[%clk 0:02:18.6]} 14... Bc6 {[%clk 0:02:34]} 15. Qg4 {[%clk
0:02:17.9]} 15... g6 {[%clk 0:02:28.9]} 16. Ng5 {[%clk 0:02:10]} 16... Nd7
{[%clk 0:02:20.5]} 17. Nxe6 {[%clk 0:02:04.7]} 17... fxe6 {[%clk 0:02:20.3]} 18.
Qxe6+ {[%clk 0:02:04.1]} 18... Kd8 {[%clk 0:02:20.6]} 19. Be7+ {[%clk
0:01:48.9]} 19... Kc8 {[%clk 0:02:13.5]} 20. d5 {[%clk 0:01:48.9]} 20... Re8
{[%clk 0:02:02.5]} 21. dxc6 {[%clk 0:01:47.5]} 21... bxc6 {[%clk 0:01:59.4]} 22.
Rac1 {[%clk 0:01:45.2]} 22... c5 {[%clk 0:01:56.1]} 23. Qd5 {[%clk 0:01:44.6]}
23... Qb7 {[%clk 0:01:52.5]} 24. Rxc5+ {[%clk 0:01:38.1]} 24... Nxc5 {[%clk
0:01:46.3]} 25. Qxc5+ {[%clk 0:01:36.6]} 25... Qc7 {[%clk 0:01:42.1]} 26. Qd5
{[%clk 0:01:30.2]} 26... Rxe7 {[%clk 0:01:22.9]} 27. Qxa8+ {[%clk 0:01:27.2]}
27... Kd7 {[%clk 0:01:23.3]} 28. Rd1+ {[%clk 0:01:03.3]} 28... Ke6 {[%clk
0:01:23.4]} 29. Qd5+ {[%clk 0:00:58.6]} 29... Kf5 {[%clk 0:01:21.6]} 30. Qf3+
{[%clk 0:00:25.1]} 30... Kg5 {[%clk 0:01:21.1]} 31. Qg3+ {[%clk 0:00:21.4]}
31... Kh6 {[%clk 0:01:20.6]} 32. Qf4+ {[%clk 0:00:14.3]} 32... Kg7 {[%clk
0:01:17.5]} 33. Qf6+ {[%clk 0:00:13.8]} 33... Kh6 {[%clk 0:01:17.8]} 34. Qh4+
{[%clk 0:00:09.9]} 34... Kg7 {[%clk 0:01:18]} 35. Qf6+ {[%clk 0:00:10.1]} 35...
Kh6 {[%clk 0:01:05.8]} 36. Qh4+ {[%clk 0:00:10]} 36... Kg7 {[%clk 0:01:06.2]}
37. Qf6+ {[%clk 0:00:10.2]} 1/2-1/2

[Event "Late-Titled-Tuesday-Blitz-April-16-2024"]
[Site "Chess.com"]
[Date "2024.04.16"]
[Round "6"]
[White "Boorchess"]
[Black "trriinu"]
[Result "1-0"]
[WhiteElo "2490"]
[BlackElo "2255"]
[TimeControl "180+1"]
[EndTime "15:02:18 PDT"]
[Termination "Boorchess won on time"]

1. d4 {[%clk 0:03:00.9]} 1... g6 {[%clk 0:02:25.3]} 2. Nf3 {[%clk 0:02:58.8]}
2... Bg7 {[%clk 0:02:25.8]} 3. Bg5 {[%clk 0:02:56.9]} 3... d6 {[%clk 0:02:25.2]}
4. e3 {[%clk 0:02:56.8]} 4... Nf6 {[%clk 0:02:24.8]} 5. Nbd2 {[%clk 0:02:55.4]}
5... O-O {[%clk 0:02:25.1]} 6. Bd3 {[%clk 0:02:54.6]} 6... Nbd7 {[%clk
0:02:25.1]} 7. O-O {[%clk 0:02:53.9]} 7... c5 {[%clk 0:02:24.8]} 8. c3 {[%clk
0:02:52.6]} 8... a6 {[%clk 0:02:24.8]} 9. a4 {[%clk 0:02:51.4]} 9... Rb8 {[%clk
0:02:23.2]} 10. a5 {[%clk 0:02:49.5]} 10... h6 {[%clk 0:02:17.2]} 11. Bh4 {[%clk
0:02:48.8]} 11... d5 {[%clk 0:01:55.1]} 12. Bg3 {[%clk 0:02:37.7]} 12... Ra8
{[%clk 0:01:51.7]} 13. Ne5 {[%clk 0:02:35.9]} 13... c4 {[%clk 0:01:50.2]} 14.
Bc2 {[%clk 0:02:34.2]} 14... Nh5 {[%clk 0:01:47.7]} 15. Nef3 {[%clk 0:02:17.7]}
15... Nxg3 {[%clk 0:01:44.8]} 16. hxg3 {[%clk 0:02:17.5]} 16... b5 {[%clk
0:01:31.9]} 17. axb6 {[%clk 0:02:14.2]} 17... Qxb6 {[%clk 0:01:30.4]} 18. b3
{[%clk 0:02:11.6]} 18... cxb3 {[%clk 0:01:28.6]} 19. Bxb3 {[%clk 0:02:10.1]}
19... e6 {[%clk 0:01:16.9]} 20. c4 {[%clk 0:02:06.7]} 20... Bb7 {[%clk
0:01:09.1]} 21. c5 {[%clk 0:02:04.3]} 21... Qc7 {[%clk 0:01:07]} 22. Rb1 {[%clk
0:01:55.2]} 22... Bc6 {[%clk 0:01:02.5]} 23. Ba4 {[%clk 0:01:53]} 23... Rfb8
{[%clk 0:01:02.7]} 24. Qc2 {[%clk 0:01:51]} 24... e5 {[%clk 0:00:57.6]} 25. Rfc1
{[%clk 0:01:47.1]} 25... f5 {[%clk 0:00:50.2]} 26. Bxc6 {[%clk 0:01:41.6]} 26...
Qxc6 {[%clk 0:00:50]} 27. Qa2 {[%clk 0:01:41.1]} 27... g5 {[%clk 0:00:41.7]} 28.
Nb3 {[%clk 0:01:36.4]} 28... g4 {[%clk 0:00:35.7]} 29. Nh4 {[%clk 0:01:32.6]}
29... f4 {[%clk 0:00:20.9]} 30. Na5 {[%clk 0:01:29.1]} 30... Qe6 {[%clk
0:00:20.1]} 31. c6 {[%clk 0:01:26.4]} 31... Nf6 {[%clk 0:00:14.7]} 32. c7 {[%clk
0:01:21.3]} 32... Rc8 {[%clk 0:00:14.1]} 33. Rc6 {[%clk 0:01:19.8]} 33... Qe7
{[%clk 0:00:09.9]} 34. Ng6 {[%clk 0:01:16.8]} 34... Qe8 {[%clk 0:00:04]} 35.
dxe5 {[%clk 0:01:12.5]} 1-0

[Event "Late-Titled-Tuesday-Blitz-April-16-2024"]
[Site "Chess.com"]
[Date "2024.04.16"]
[Round "6"]
[White "szachmistrz2500"]
[Black "Alphafischer2019"]
[Result "1-0"]
[WhiteElo "2460"]
[BlackElo "2710"]
[TimeControl "180+1"]
[EndTime "15:02:21 PDT"]
[Termination "szachmistrz2500 won by resignation"]

1. d4 {[%clk 0:03:00.3]} 1... Nf6 {[%clk 0:02:58.8]} 2. c4 {[%clk 0:02:59.5]}
2... c5 {[%clk 0:02:58.4]} 3. d5 {[%clk 0:02:59.2]} 3... e5 {[%clk 0:02:59]} 4.
Nc3 {[%clk 0:02:55.9]} 4... d6 {[%clk 0:02:57.9]} 5. e4 {[%clk 0:02:55.2]} 5...
g6 {[%clk 0:02:57.7]} 6. Bd3 {[%clk 0:02:46.8]} 6... Bg7 {[%clk 0:02:57.1]} 7.
Nge2 {[%clk 0:02:47]} 7... O-O {[%clk 0:02:56.6]} 8. O-O {[%clk 0:02:47.2]} 8...
Nbd7 {[%clk 0:02:53.5]} 9. Ng3 {[%clk 0:02:41.3]} 9... a6 {[%clk 0:02:42.9]} 10.
a3 {[%clk 0:02:40.1]} 10... b6 {[%clk 0:02:40.7]} 11. b4 {[%clk 0:02:39.9]}
11... h5 {[%clk 0:02:38.6]} 12. Bg5 {[%clk 0:02:38.3]} 12... Qe8 {[%clk
0:02:38.1]} 13. Qd2 {[%clk 0:02:35.8]} 13... Nh7 {[%clk 0:02:33.9]} 14. Bh6
{[%clk 0:02:31.5]} 14... Bxh6 {[%clk 0:02:32.9]} 15. Qxh6 {[%clk 0:02:31]} 15...
Qe7 {[%clk 0:02:33.8]} 16. Rab1 {[%clk 0:02:20]} 16... Qg5 {[%clk 0:02:26.8]}
17. Qxg5 {[%clk 0:02:14.9]} 17... Nxg5 {[%clk 0:02:27.7]} 18. h4 {[%clk
0:02:04.4]} 18... Nh7 {[%clk 0:02:27.1]} 19. Nge2 {[%clk 0:01:59.5]} 19... f5
{[%clk 0:02:25.6]} 20. f4 {[%clk 0:01:53.3]} 20... exf4 {[%clk 0:02:21.1]} 21.
exf5 {[%clk 0:01:50.1]} 21... Ne5 {[%clk 0:02:21.8]} 22. fxg6 {[%clk 0:01:44.4]}
22... Nxd3 {[%clk 0:02:16.2]} 23. gxh7+ {[%clk 0:01:43.7]} 23... Kxh7 {[%clk
0:02:17.1]} 24. bxc5 {[%clk 0:01:38.2]} 24... bxc5 {[%clk 0:02:14.1]} 25. Ne4
{[%clk 0:01:38]} 25... Bg4 {[%clk 0:02:10.3]} 26. Rb7+ {[%clk 0:01:36.7]} 26...
Kg6 {[%clk 0:02:10]} 27. N2c3 {[%clk 0:01:22.6]} 27... Rad8 {[%clk 0:02:06.9]}
28. Rb6 {[%clk 0:01:20.7]} 28... Ne5 {[%clk 0:01:57]} 29. Nxd6 {[%clk
0:01:18.1]} 29... Rf6 {[%clk 0:01:56.4]} 30. Nce4 {[%clk 0:01:17.9]} 30... Be2
{[%clk 0:01:44.8]} 31. Nxf6 {[%clk 0:01:04.9]} 31... Bxf1 {[%clk 0:01:43.5]} 32.
Nfe4 {[%clk 0:00:56.1]} 32... Bd3 {[%clk 0:01:37.9]} 33. Nb7+ {[%clk 0:00:51.8]}
33... Kf5 {[%clk 0:01:38.2]} 34. Nxd8 {[%clk 0:00:49.3]} 34... Kxe4 {[%clk
0:01:37]} 35. Ne6 {[%clk 0:00:40.4]} 35... Nxc4 {[%clk 0:01:36.4]} 36. Rxa6
{[%clk 0:00:36.5]} 36... Be2 {[%clk 0:01:25.9]} 37. d6 {[%clk 0:00:32.4]} 37...
Ne5 {[%clk 0:01:23.6]} 38. Nxc5+ {[%clk 0:00:31.1]} 38... Kd5 {[%clk 0:01:23.3]}
39. Ra5 {[%clk 0:00:29.5]} 39... Nc6 {[%clk 0:01:22.2]} 40. d7 {[%clk
0:00:28.7]} 40... Kd6 {[%clk 0:01:19.6]} 41. Ra8 {[%clk 0:00:23.4]} 41... Ke7
{[%clk 0:01:17.3]} 42. Re8+ {[%clk 0:00:21.1]} 42... Kd6 {[%clk 0:01:16.1]} 43.
Rxe2 {[%clk 0:00:18.5]} 43... Kxc5 {[%clk 0:01:15.5]} 44. Re8 {[%clk 0:00:18.5]}
1-0

[Event "Late-Titled-Tuesday-Blitz-April-16-2024"]
[Site "Chess.com"]
[Date "2024.04.16"]
[Round "6"]
[White "only_strong_moves"]
[Black "masterofpuppets2"]
[Result "1-0"]
[WhiteElo "2676"]
[BlackElo "2489"]
[TimeControl "180+1"]
[EndTime "15:02:24 PDT"]
[Termination "only_strong_moves won on time"]

1. d4 {[%clk 0:03:00.9]} 1... d5 {[%clk 0:02:59.3]} 2. c4 {[%clk 0:03:00.1]}
2... e6 {[%clk 0:02:59.5]} 3. Nf3 {[%clk 0:03:00.1]} 3... c5 {[%clk 0:02:59.9]}
4. cxd5 {[%clk 0:02:58.5]} 4... exd5 {[%clk 0:03:00.8]} 5. Nc3 {[%clk
0:02:57.8]} 5... Nf6 {[%clk 0:03:01]} 6. Bf4 {[%clk 0:02:56]} 6... Nc6 {[%clk
0:02:52.4]} 7. e3 {[%clk 0:02:55.9]} 7... a6 {[%clk 0:02:52]} 8. Rc1 {[%clk
0:02:53.7]} 8... c4 {[%clk 0:02:48.2]} 9. Be2 {[%clk 0:02:37.8]} 9... Bb4 {[%clk
0:02:43.9]} 10. O-O {[%clk 0:02:38]} 10... O-O {[%clk 0:02:39.8]} 11. Bg5 {[%clk
0:02:28.2]} 11... Be6 {[%clk 0:02:34]} 12. Ne5 {[%clk 0:02:22.3]} 12... h6
{[%clk 0:02:30.4]} 13. Nxc6 {[%clk 0:02:20.5]} 13... bxc6 {[%clk 0:02:29.9]} 14.
Bh4 {[%clk 0:02:19.1]} 14... Bxc3 {[%clk 0:01:55.6]} 15. Rxc3 {[%clk 0:02:17.8]}
15... g5 {[%clk 0:01:48.9]} 16. Bg3 {[%clk 0:02:17.7]} 16... Ne4 {[%clk
0:01:48.6]} 17. Rc1 {[%clk 0:02:18]} 17... Nxg3 {[%clk 0:01:48.4]} 18. hxg3
{[%clk 0:02:15.9]} 18... Qa5 {[%clk 0:01:43.7]} 19. b3 {[%clk 0:02:11.5]} 19...
Qxa2 {[%clk 0:01:29.5]} 20. bxc4 {[%clk 0:02:12]} 20... dxc4 {[%clk 0:01:30.4]}
21. Bf3 {[%clk 0:02:10.8]} 21... Rac8 {[%clk 0:01:17.3]} 22. Be4 {[%clk
0:02:10.9]} 22... Rfd8 {[%clk 0:01:12.6]} 23. Qh5 {[%clk 0:02:10.5]} 23... Kg7
{[%clk 0:01:08.6]} 24. f4 {[%clk 0:02:07.2]} 24... Qd2 {[%clk 0:00:39.4]} 25.
Rce1 {[%clk 0:01:59.7]} 25... gxf4 {[%clk 0:00:35.5]} 26. Re2 {[%clk 0:02:00.3]}
26... Qb4 {[%clk 0:00:25.9]} 27. Rxf4 {[%clk 0:02:00.8]} 27... Qe7 {[%clk
0:00:23.4]} 28. Ref2 {[%clk 0:02:00.5]} 28... Rf8 {[%clk 0:00:21.9]} 29. Qe5+
{[%clk 0:01:11.9]} 29... Kg8 {[%clk 0:00:12.4]} 30. Rg4+ {[%clk 0:01:10.5]}
30... Bxg4 {[%clk 0:00:12.6]} 31. Qxe7 {[%clk 0:01:10.2]} 31... Rce8 {[%clk
0:00:13.2]} 32. Bh7+ {[%clk 0:01:03.9]} 32... Kxh7 {[%clk 0:00:12.5]} 33. Rxf7+
{[%clk 0:01:03.2]} 1-0

[Event "Late-Titled-Tuesday-Blitz-April-16-2024"]
[Site "Chess.com"]
[Date "2024.04.16"]
[Round "6"]
[White "pirulillo"]
[Black "Agustin_Meza"]
[Result "1-0"]
[WhiteElo "2339"]
[BlackElo "2204"]
[TimeControl "180+1"]
[EndTime "15:02:24 PDT"]
[Termination "pirulillo won on time"]

1. e4 {[%clk 0:03:00.9]} 1... c5 {[%clk 0:02:59.5]} 2. Nf3 {[%clk 0:02:49.7]}
2... Nc6 {[%clk 0:02:58.9]} 3. b4 {[%clk 0:02:40.7]} 3... cxb4 {[%clk
0:02:42.3]} 4. d4 {[%clk 0:02:38.9]} 4... d5 {[%clk 0:02:42.8]} 5. exd5 {[%clk
0:02:38.1]} 5... Qxd5 {[%clk 0:02:43.7]} 6. c4 {[%clk 0:02:38.3]} 6... bxc3
{[%clk 0:02:43.3]} 7. Nxc3 {[%clk 0:02:38.8]} 7... Qd8 {[%clk 0:02:42.4]} 8. d5
{[%clk 0:02:38.3]} 8... Nb8 {[%clk 0:02:42.6]} 9. Bf4 {[%clk 0:02:36.5]} 9... e6
{[%clk 0:02:39]} 10. Rc1 {[%clk 0:02:31.7]} 10... Nf6 {[%clk 0:02:21]} 11. Bb5+
{[%clk 0:02:30.7]} 11... Bd7 {[%clk 0:02:21.1]} 12. O-O {[%clk 0:02:30.7]} 12...
Be7 {[%clk 0:02:15.3]} 13. d6 {[%clk 0:02:27.1]} 13... Bf8 {[%clk 0:02:15.4]}
14. Qa4 {[%clk 0:02:18.8]} 14... Nc6 {[%clk 0:02:00.8]} 15. Rfe1 {[%clk
0:02:11.5]} 15... g6 {[%clk 0:01:58.2]} 16. Bg5 {[%clk 0:01:58.8]} 16... Bg7
{[%clk 0:01:58]} 17. Nd5 {[%clk 0:01:49.8]} 17... O-O {[%clk 0:01:41]} 18. Bxc6
{[%clk 0:01:44.7]} 18... Bxc6 {[%clk 0:01:38]} 19. Ne7+ {[%clk 0:01:45.6]} 19...
Kh8 {[%clk 0:01:36.8]} 20. Nxc6 {[%clk 0:01:43.4]} 20... bxc6 {[%clk 0:01:37]}
21. Rxc6 {[%clk 0:01:37.3]} 21... Qd7 {[%clk 0:01:23.4]} 22. Ne5 {[%clk
0:01:36.2]} 22... Qb7 {[%clk 0:01:19.7]} 23. Rc7 {[%clk 0:01:33.6]} 23... Qd5
{[%clk 0:01:07.2]} 24. Qh4 {[%clk 0:01:21]} 24... Ne4 {[%clk 0:00:27.1]} 25.
Qxe4 {[%clk 0:01:11.5]} 25... Qxd6 {[%clk 0:00:20.7]} 26. Nxf7+ {[%clk
0:01:09.2]} 26... Rxf7 {[%clk 0:00:20.2]} 27. Rxf7 {[%clk 0:01:10.1]} 27... Rc8
{[%clk 0:00:11.1]} 28. g3 {[%clk 0:01:06.5]} 28... Qb4 {[%clk 0:00:01.8]} 29.
Qxe6 {[%clk 0:00:57.5]} 1-0

[Event "Late-Titled-Tuesday-Blitz-April-16-2024"]
[Site "Chess.com"]
[Date "2024.04.16"]
[Round "6"]
[White "zacachess"]
[Black "giovannibrandao7"]
[Result "1-0"]
[WhiteElo "2358"]
[BlackElo "2228"]
[TimeControl "180+1"]
[EndTime "15:02:25 PDT"]
[Termination "zacachess won by resignation"]

1. e4 {[%clk 0:03:00.9]} 1... c5 {[%clk 0:02:56]} 2. Nf3 {[%clk 0:03:00.6]} 2...
d6 {[%clk 0:02:55.8]} 3. Bb5+ {[%clk 0:03:00.7]} 3... Bd7 {[%clk 0:02:55.5]} 4.
Bxd7+ {[%clk 0:03:00.8]} 4... Qxd7 {[%clk 0:02:56.4]} 5. c4 {[%clk 0:03:00.8]}
5... Nc6 {[%clk 0:02:56.4]} 6. Nc3 {[%clk 0:03:01]} 6... g6 {[%clk 0:02:56.5]}
7. d4 {[%clk 0:03:01.2]} 7... cxd4 {[%clk 0:02:56.5]} 8. Nxd4 {[%clk 0:03:02.1]}
8... Bg7 {[%clk 0:02:56.4]} 9. Be3 {[%clk 0:03:02.3]} 9... Nf6 {[%clk
0:02:56.9]} 10. f3 {[%clk 0:03:02.8]} 10... O-O {[%clk 0:02:56.2]} 11. O-O
{[%clk 0:03:03]} 11... Rac8 {[%clk 0:02:56.7]} 12. b3 {[%clk 0:03:02.3]} 12...
Rfd8 {[%clk 0:02:54.9]} 13. Qd2 {[%clk 0:03:00.9]} 13... e6 {[%clk 0:02:54.4]}
14. Rad1 {[%clk 0:02:58.8]} 14... d5 {[%clk 0:02:48.8]} 15. cxd5 {[%clk
0:02:52.6]} 15... exd5 {[%clk 0:02:48.8]} 16. Nxc6 {[%clk 0:02:52]} 16... bxc6
{[%clk 0:02:33.8]} 17. e5 {[%clk 0:02:52]} 17... Ne8 {[%clk 0:02:30.9]} 18. f4
{[%clk 0:02:52.1]} 18... f6 {[%clk 0:02:26.8]} 19. Ne4 {[%clk 0:02:20.2]} 19...
fxe5 {[%clk 0:01:56.2]} 20. fxe5 {[%clk 0:02:21.1]} 20... Bxe5 {[%clk
0:01:48.8]} 21. Bg5 {[%clk 0:02:20.9]} 21... Nd6 {[%clk 0:00:55.4]} 22. Nc5
{[%clk 0:01:49.9]} 22... Qg4 {[%clk 0:00:28.4]} 23. Bxd8 {[%clk 0:01:30.8]}
23... Rxd8 {[%clk 0:00:28.3]} 24. Rfe1 {[%clk 0:01:11.5]} 24... Qh5 {[%clk
0:00:16]} 25. g3 {[%clk 0:01:04.9]} 25... Nf7 {[%clk 0:00:08.7]} 26. Qe2 {[%clk
0:00:58.2]} 26... Qxe2 {[%clk 0:00:07.6]} 27. Rxe2 {[%clk 0:00:59.1]} 27... Rb8
{[%clk 0:00:07]} 28. Nd7 {[%clk 0:00:56.8]} 28... Re8 {[%clk 0:00:05.1]} 29.
Nf6+ {[%clk 0:00:54.1]} 1-0